[Event "VIII Iberoamericano Mexico 2022"]
[Site "Mexico City"]
[Date "2022.02.18"]
[Round "7.38"]
[White "Alfaro, William"]
[Black "Alvidrez Aguirre, Genaro"]
[Result "1/2-1/2"]
[ECO "D77"]
[WhiteElo "2143"]
[BlackElo "1880"]
[Annotator "NA"]
[PlyCount "28"]
[EventDate "2022.02.12"]
[EventType "swiss"]
[EventCountry "MEX"]
[SourceTitle "playchess.com"]
[Source "ChessBase"]
[SourceQuality "1"]
[TimeControl "5400+30"]

1. d4 {[%emt 0:03:18]} Nf6 {[%emt 0:01:31]} 2. Nf3 {[%emt 0:00:27]} g6 {[%emt 0:02:25]} 3. g3 {[%emt 0:02:44]} Bg7 {[%emt 0:00:16]} 4. Bg2 {[%emt 0:00:05]} d5 {[%emt 0:00:19]} 5. O-O {[%emt 0:00:07]} O-O {[%emt 0:00:06]} 6. c4 {[%emt 0:00:03]} dxc4 {[%emt 0:01:53]} 7. Na3 {[%emt 0:01:25]} c3 {[%emt 0:01:15]} 8. bxc3 {[%emt 0:00:05]} c5 {[%emt 0:00:11]} 9. Rb1 {[%emt 0:03:01]} Nc6 {[%emt 0:08:24]} 10. Bf4 {[%emt 0:18:10]} Nd5 {[%emt 0:06:57]} 11. Qc1 {[%emt 0:00:06]} cxd4 {[%emt 0:06:33]} 12. cxd4 {[%emt 0:00:20]} Nxf4 {[%emt 0:00:23]} 13. Qxf4 {[%emt 0:01:44]} Nxd4 {[%emt 0:00:52]} 14. Nxd4 {[%emt 0:00:06]} Qxd4 {[%emt 0:00:10]} 1/2-1/2

[Event "VIII Iberoamericano Mexico 2022"]
[Site "Mexico City"]
[Date "2022.02.18"]
[Round "7.39"]
[White "Lopez Padilla, Piero Raul"]
[Black "Vega Garcia, Jorge Arturo"]
[Result "1/2-1/2"]
[ECO "E01"]
[WhiteElo "1898"]
[BlackElo "2121"]
[Annotator "NA"]
[PlyCount "30"]
[EventDate "2022.02.12"]
[EventType "swiss"]
[EventCountry "MEX"]
[SourceTitle "playchess.com"]
[Source "ChessBase"]
[SourceQuality "1"]
[TimeControl "5400+30"]

1. d4 {[%emt 0:03:25]} Nf6 {[%emt 0:00:43]} 2. c4 {[%emt 0:00:07]} e6 {[%emt 0:01:26]} 3. g3 {[%emt 0:00:06]} d5 {[%emt 0:02:34]} 4. Bg2 {[%emt 0:00:21]} c6 {[%emt 0:00:13]} 5. Nd2 {[%emt 0:01:37]} Nbd7 {[%emt 0:00:34]} 6. Ngf3 {[%emt 0:00:13]} Bd6 {[%emt 0:00:34]} 7. O-O {[%emt 0:00:52]} O-O {[%emt 0:00:13]} 8. Qc2 {[%emt 0:00:31]} Qe7 {[%emt 0:00:54]} 9. e4 {[%emt 0:00:45]} dxe4 {[%emt 0:00:48]} 10. Nxe4 {[%emt 0:00:11]} Nxe4 {[%emt 0:00:16]} 11. Qxe4 {[%emt 0:00:17]} Nf6 {[%emt 0:00:04]} 12. Qe2 {[%emt 0:00:19]} c5 {[%emt 0:00:18]} 13. Rd1 {[%emt 0:03:53]} Rd8 {[%emt 0:08:01]} 14. Be3 {[%emt 0:00:47]} cxd4 {[%emt 0:01:41]} 15. Nxd4 {[%emt 0:00:13]} a6 {[%emt 1:19:41]} 1/2-1/2

[Event "VIII Iberoamericano Mexico 2022"]
[Site "Mexico City"]
[Date "2022.02.18"]
[Round "7.40"]
[White "Paredes Guzman, Francisco Javier"]
[Black "Limon Olmos, Ivan Alonso"]
[Result "1-0"]
[ECO "D45"]
[WhiteElo "1891"]
[BlackElo "2106"]
[Annotator "NA"]
[PlyCount "63"]
[EventDate "2022.02.12"]
[EventType "swiss"]
[EventCountry "MEX"]
[SourceTitle "playchess.com"]
[Source "ChessBase"]
[SourceQuality "1"]
[TimeControl "5400+30"]

1. d4 {[%emt 0:00:02]} d5 {[%emt 0:14:00]} 2. c4 {[%emt 0:00:05]} e6 {[%emt 0:00:33]} 3. Nc3 {[%emt 0:00:15]} Nf6 {[%emt 0:00:07]} 4. Nf3 {[%emt 0:00:04]} c6 {[%emt 0:00:21]} 5. e3 {[%emt 0:02:23]} Nbd7 {[%emt 0:00:33]} 6. b3 {[%emt 0:03:44]} Bb4 {[%emt 0:09:55]} 7. Bd2 {[%emt 0:00:04]} O-O {[%emt 0:04:54]} 8. Bd3 {[%emt 0:14:23]} Qe7 {[%emt 0:03:16]} 9. Ne2 {[%emt 0:23:49]} Bd6 {[%emt 0:07:22]} 10. Ng3 {[%emt 0:00:49]} g6 {[%emt 0:01:36]} 11. O-O {[%emt 0:03:27]} dxc4 {[%emt 0:02:50]} 12. bxc4 {[%emt 0:07:46]} e5 {[%emt 0:00:45]} 13. Bc2 {[%emt 0:01:23]} e4 {[%emt 0:06:38]} 14. Ng5 {[%emt 0:00:20]} Bxg3 {[%emt 0:01:44]} 15. fxg3 {[%emt 0:05:58]} Nb6 {[%emt 0:05:40]} 16. d5 {[%emt 0:10:01]} Qe5 {[%emt 0:16:49]} 17. Rxf6 {[%emt 0:03:04]} Qxg5 {[%emt 0:00:08]} 18. Rf4 {[%emt 0:00:12]} Nxc4 {[%emt 0:02:51]} 19. Bc3 {[%emt 0:01:12]} cxd5 {[%emt 0:01:02]} 20. Qd4 {[%emt 0:00:08]} f6 {[%emt 0:00:44]} 21. Raf1 {[%emt 0:03:08]} Be6 {[%emt 0:00:49]} 22. Bb3 {[%emt 0:00:38]} Rac8 {[%emt 0:04:42]} 23. Qxa7 {[%emt 0:00:45]} Ne5 {[%emt 0:02:35]} 24. Ba1 {[%emt 0:01:54]} Rf7 {[%emt 0:02:57]} 25. Qb6 {[%emt 0:04:14]} Rc6 {[%emt 0:01:26]} 26. Qd8+ {[%emt 0:06:24]} Kg7 {[%emt 0:02:18]} 27. h4 {[%emt 0:01:45]} Qxg3 {[%emt 0:00:46]} 28. Rxf6 {[%emt 0:00:06]} Kh6 {[%emt 0:06:34]} 29. Bxe5 {[%emt 0:00:29]} Qxe5 {[%emt 0:00:01]} 30. Rxf7 {[%emt 0:00:16]} Bxf7 {[%emt 0:00:04]} 31. Qf8+ {[%emt 0:01:11]} Qg7 {[%emt 0:00:26]} 32. Qxf7 {[%emt 0:00:17]} 1-0

[Event "VIII Iberoamericano Mexico 2022"]
[Site "Mexico City"]
[Date "2022.02.18"]
[Round "7.41"]
[White "Davalos Prieto, Abel Justo"]
[Black "Hernandez Morales, Dillan"]
[Result "1-0"]
[ECO "A45"]
[WhiteElo "2103"]
[BlackElo "1846"]
[Annotator "NA"]
[PlyCount "153"]
[EventDate "2022.02.12"]
[EventType "swiss"]
[EventCountry "MEX"]
[SourceTitle "playchess.com"]
[Source "ChessBase"]
[SourceQuality "1"]
[TimeControl "5400+30"]

1. d4 {[%emt 0:00:07]} Nf6 {[%emt 0:00:31]} 2. Bf4 {[%emt 0:00:11]} g6 {[%emt 0:00:30]} 3. Nc3 {[%emt 0:00:15]} d5 {[%emt 0:00:28]} 4. e3 {[%emt 0:00:12]} Bg7 {[%emt 0:00:30]} 5. h4 {[%emt 0:00:16]} O-O {[%emt 0:08:55]} 6. h5 {[%emt 0:00:23]} c5 {[%emt 0:01:54]} 7. hxg6 {[%emt 0:00:12]} fxg6 {[%emt 0:00:40]} 8. dxc5 {[%emt 0:01:51]} Qa5 {[%emt 0:02:05]} 9. Qd2 {[%emt 0:00:21]} Nc6 {[%emt 0:01:44]} 10. Nf3 {[%emt 0:00:26]} Re8 {[%emt 0:08:11]} 11. Bb5 {[%emt 0:07:51]} Bd7 {[%emt 0:05:02]} 12. Bxc6 {[%emt 0:07:00]} Bxc6 {[%emt 0:04:52]} 13. Be5 {[%emt 0:01:28]} Qxc5 {[%emt 0:12:11]} 14. Qd4 {[%emt 0:09:14]} Qxd4 {[%emt 0:01:42]} 15. exd4 {[%emt 0:00:08]} h6 {[%emt 0:03:15]} 16. O-O {[%emt 0:04:14]} Nd7 {[%emt 0:06:49]} 17. Bxg7 {[%emt 0:02:16]} Kxg7 {[%emt 0:00:06]} 18. Rfe1 {[%emt 0:00:11]} e6 {[%emt 0:00:42]} 19. Re3 {[%emt 0:00:56]} Re7 {[%emt 0:04:07]} 20. Rae1 {[%emt 0:01:51]} Rae8 {[%emt 0:01:15]} 21. Ne5 {[%emt 0:08:35]} Nxe5 {[%emt 0:01:36]} 22. Rxe5 {[%emt 0:00:09]} b6 {[%emt 0:08:14]} 23. Nd1 {[%emt 0:08:35]} Kf6 {[%emt 0:13:49]} 24. Ne3 {[%emt 0:00:31]} h5 {[%emt 0:00:36]} 25. f4 {[%emt 0:02:49]} Bb7 {[%emt 0:03:53]} 26. Kf2 {[%emt 0:01:33]} Rf8 {[%emt 0:07:26]} 27. g3 {[%emt 0:04:49]} Rff7 {[%emt 0:01:13]} 28. Ng2 {[%emt 0:00:58]} Bc8 {[%emt 0:00:27]} 29. Nh4 {[%emt 0:00:23]} Rg7 {[%emt 0:00:33]} 30. Nf3 {[%emt 0:01:24]} Rc7 {[%emt 0:01:12]} 31. c3 {[%emt 0:00:15]} Rc6 {[%emt 0:00:50]} 32. Rg5 {[%emt 0:01:26]} b5 {[%emt 0:00:35]} 33. Ne5 {[%emt 0:00:28]} Rcc7 {[%emt 0:00:11]} 34. a3 {[%emt 0:02:18]} a5 {[%emt 0:00:10]} 35. Nd3 {[%emt 0:00:45]} Rh7 {[%emt 0:00:43]} 36. Rh1 {[%emt 0:00:28]} Rh8 {[%emt 0:00:21]} 37. Ke3 {[%emt 0:00:54]} Bd7 {[%emt 0:00:39]} 38. Kd2 {[%emt 0:02:57]} Be8 {[%emt 0:00:24]} 39. Nc5 {[%emt 0:03:12]} Rhh7 {[%emt 0:01:02]} 40. Re5 {[%emt 0:00:23]} Rce7 {[%emt 0:00:35]} 41. Nd3 {[%emt 0:06:02]} Reg7 {[%emt 0:00:23]} 42. Rg5 {[%emt 0:00:50]} Rb7 {[%emt 0:00:27]} 43. Kc2 {[%emt 0:02:16]} Rhc7 {[%emt 0:00:37]} 44. Kb3 {[%emt 0:02:08]} Ra7 {[%emt 0:00:26]} 45. Kc2 {[%emt 0:02:39]} Rab7 {[%emt 0:00:10]} 46. Kd2 {[%emt 0:00:10]} Rh7 {[%emt 0:00:26]} 47. Re1 {[%emt 0:01:51]} Rb6 {[%emt 0:00:35]} 48. Rge5 {[%emt 0:01:11]} Re7 {[%emt 0:00:24]} 49. Nc5 {[%emt 0:00:55]} Bf7 {[%emt 0:00:46]} 50. Ra1 {[%emt 0:00:46]} Ra7 {[%emt 0:00:30]} 51. Kc2 {[%emt 0:02:16]} Rc7 {[%emt 0:00:28]} 52. Nb3 {[%emt 0:02:07]} Ra6 {[%emt 0:00:37]} 53. Kd3 {[%emt 0:00:45]} Raa7 {[%emt 0:00:21]} 54. Nc5 {[%emt 0:00:26]} Re7 {[%emt 0:00:38]} 55. b3 {[%emt 0:04:27]} Be8 {[%emt 0:00:38]} 56. a4 {[%emt 0:00:17]} bxa4 {[%emt 0:00:29]} 57. bxa4 {[%emt 0:00:11]} Rac7 {[%emt 0:00:34]} 58. Rb1 {[%emt 0:00:12]} Rc6 {[%emt 0:00:32]} 59. Rb5 {[%emt 0:00:36]} Ra7 {[%emt 0:00:18]} 60. Rb8 {[%emt 0:00:47]} Bf7 {[%emt 0:00:37]} 61. c4 {[%emt 0:00:51]} Rcc7 {[%emt 0:00:35]} 62. Rb6 {[%emt 0:00:19]} dxc4+ {[%emt 0:00:12]} 63. Kxc4 {[%emt 0:00:12]} Ra8 {[%emt 0:00:48]} 64. d5 {[%emt 0:00:41]} Be8 {[%emt 0:00:28]} 65. Rbxe6+ {[%emt 0:01:30]} Kf7 {[%emt 0:01:03]} 66. d6 {[%emt 0:00:22]} Rc6 {[%emt 0:00:00]} 67. Re7+ {[%emt 0:01:27]} Kf8 {[%emt 0:01:00]} 68. Kd5 {[%emt 0:01:55]} Rb6 {[%emt 0:00:00]} 69. Ne6+ {[%emt 0:00:38]} Kg8 {[%emt 0:00:00]} 70. Nc7 {[%emt 0:00:12]} Bc6+ {[%emt 0:00:06]} 71. Kc5 {[%emt 0:00:39]} Rab8 {[%emt 0:00:21]} 72. d7 {[%emt 0:00:24]} Bxd7 {[%emt 0:00:49]} 73. Rxd7 {[%emt 0:00:11]} Rb4 {[%emt 0:00:55]} 74. Ree7 {[%emt 0:01:15]} Rc8 {[%emt 0:00:39]} 75. Kd5 {[%emt 0:00:17]} Rxc7 {[%emt 0:00:38]} 76. Rxc7 {[%emt 0:00:18]} Rxa4 {[%emt 0:00:07]} 77. Rc8# {[%emt 0:00:42]} 1-0

[Event "VIII Iberoamericano Mexico 2022"]
[Site "Mexico City"]
[Date "2022.02.18"]
[Round "7.42"]
[White "Martinez Morales, Geovanni"]
[Black "Alvarado Zuniga, Noe"]
[Result "1-0"]
[ECO "B09"]
[WhiteElo "2098"]
[BlackElo "1666"]
[Annotator "NA"]
[PlyCount "139"]
[EventDate "2022.02.12"]
[EventType "swiss"]
[EventCountry "MEX"]
[SourceTitle "playchess.com"]
[Source "ChessBase"]
[SourceQuality "1"]
[TimeControl "5400+30"]

1. e4 {[%emt 0:00:04]} g6 {[%emt 0:04:09]} 2. d4 {[%emt 0:00:11]} Bg7 {[%emt 0:00:07]} 3. Nc3 {[%emt 0:00:07]} d6 {[%emt 0:00:08]} 4. f4 {[%emt 0:00:05]} Nf6 {[%emt 0:00:56]} 5. Nf3 {[%emt 0:00:16]} O-O {[%emt 0:00:12]} 6. Be3 {[%emt 0:02:03]} Ng4 {[%emt 0:04:34]} 7. Bg1 {[%emt 0:00:23]} e5 {[%emt 0:01:16]} 8. h3 {[%emt 0:01:39]} exd4 {[%emt 0:00:43]} 9. Bxd4 {[%emt 0:00:39]} Nf6 {[%emt 0:00:15]} 10. Bd3 {[%emt 0:07:36]} Nc6 {[%emt 0:00:53]} 11. Be3 {[%emt 0:01:12]} Qe7 {[%emt 0:11:13]} 12. O-O {[%emt 0:00:32]} Bf5 {[%emt 0:08:52]} 13. Nd2 {[%emt 0:15:43]} Nb4 {[%emt 0:14:36]} 14. Qf3 {[%emt 0:02:05]} Bd7 {[%emt 0:10:52]} 15. Rac1 {[%emt 0:07:11]} Nxd3 {[%emt 0:01:48]} 16. cxd3 {[%emt 0:00:11]} a6 {[%emt 0:04:24]} 17. Rfe1 {[%emt 0:04:23]} Rfe8 {[%emt 0:03:16]} 18. Bf2 {[%emt 0:02:14]} c6 {[%emt 0:01:28]} 19. Bh4 {[%emt 0:03:35]} Qf8 {[%emt 0:01:14]} 20. Nc4 {[%emt 0:06:38]} d5 {[%emt 0:06:16]} 21. Nb6 {[%emt 0:02:31]} dxe4 {[%emt 0:01:08]} 22. dxe4 {[%emt 0:01:01]} Qb4 {[%emt 0:08:44]} 23. Nxa8 {[%emt 0:02:34]} Rxa8 {[%emt 0:00:02]} 24. b3 {[%emt 0:10:48]} h6 {[%emt 0:03:34]} 25. Red1 {[%emt 0:05:38]} Be6 {[%emt 0:01:57]} 26. Kh1 {[%emt 0:01:03]} Re8 {[%emt 0:01:07]} 27. Bf2 {[%emt 0:02:53]} Qa5 {[%emt 0:01:53]} 28. Bd4 {[%emt 0:04:09]} Bc8 {[%emt 0:00:26]} 29. e5 {[%emt 0:03:49]} Nh7 {[%emt 0:01:36]} 30. Na4 {[%emt 0:03:47]} Be6 {[%emt 0:01:29]} 31. Bb6 {[%emt 0:00:35]} Qb4 {[%emt 0:00:29]} 32. Qc3 {[%emt 0:01:48]} Qxf4 {[%emt 0:00:15]} 33. Re1 {[%emt 0:01:18]} Bd5 {[%emt 0:00:50]} 34. Bd4 {[%emt 0:02:14]} Ng5 {[%emt 0:00:34]} 35. Rcd1 {[%emt 0:00:44]} Qh4 {[%emt 0:02:24]} 36. Re3 {[%emt 0:03:07]} Ne4 {[%emt 0:01:09]} 37. Qe1 {[%emt 0:01:20]} Qh5 {[%emt 0:01:13]} 38. Kg1 {[%emt 0:01:13]} Bxe5 {[%emt 0:01:00]} 39. Bxe5 {[%emt 0:00:22]} Rxe5 {[%emt 0:00:25]} 40. Nb6 {[%emt 0:00:32]} f5 {[%emt 0:00:59]} 41. Nxd5 {[%emt 0:00:24]} cxd5 {[%emt 0:00:02]} 42. Rc1 {[%emt 0:00:40]} d4 {[%emt 0:00:34]} 43. Rc8+ {[%emt 0:00:52]} Kf7 {[%emt 0:00:15]} 44. Qb4 {[%emt 0:01:11]} dxe3 {[%emt 0:01:05]} 45. Qf8+ {[%emt 0:00:38]} Ke6 {[%emt 0:00:01]} 46. Qg8+ {[%emt 0:00:52]} Kf6 {[%emt 0:01:36]} 47. Qd8+ {[%emt 0:00:36]} Ke6 {[%emt 0:00:05]} 48. Qg8+ {[%emt 0:00:27]} Kf6 {[%emt 0:01:12]} 49. Qh8+ {[%emt 0:00:32]} Kg5 {[%emt 0:00:10]} 50. Qxe5 {[%emt 0:00:17]} Qd1+ {[%emt 0:00:10]} 51. Kh2 {[%emt 0:00:03]} e2 {[%emt 0:00:19]} 52. Qe7+ {[%emt 0:00:26]} Kh5 {[%emt 0:01:52]} 53. g4+ {[%emt 0:00:16]} fxg4 {[%emt 0:00:02]} 54. hxg4+ {[%emt 0:00:05]} Kxg4 {[%emt 0:00:11]} 55. Qxe4+ {[%emt 0:00:09]} Kh5 {[%emt 0:00:14]} 56. Rc5+ {[%emt 0:00:24]} g5 {[%emt 0:00:09]} 57. Qe8+ {[%emt 0:00:35]} Kg4 {[%emt 0:00:29]} 58. Qe4+ {[%emt 0:01:02]} Kh5 {[%emt 0:00:05]} 59. Qe8+ {[%emt 0:00:22]} Kg4 {[%emt 0:00:05]} 60. Rc4+ {[%emt 0:00:51]} Kf3 {[%emt 0:00:36]} 61. Qh5+ {[%emt 0:00:42]} Kf2 {[%emt 0:00:23]} 62. Qf7+ {[%emt 0:00:43]} Ke3 {[%emt 0:00:10]} 63. Qe6+ {[%emt 0:00:21]} Kf2 {[%emt 0:00:52]} 64. Qb6+ {[%emt 0:01:17]} Kf3 {[%emt 0:00:46]} 65. Qxb7+ {[%emt 0:00:25]} Ke3 {[%emt 0:00:58]} 66. Qe7+ {[%emt 0:00:36]} Kf3 {[%emt 0:00:38]} 67. Qf6+ {[%emt 0:00:20]} Ke3 {[%emt 0:00:16]} 68. Qe5+ {[%emt 0:00:17]} Kf2 {[%emt 0:00:55]} 69. Qg3+ {[%emt 0:00:15]} Kf1 {[%emt 0:00:15]} 70. Qg1# {[%emt 0:00:09]} 1-0

[Event "VIII Iberoamericano Mexico 2022"]
[Site "Mexico City"]
[Date "2022.02.18"]
[Round "7.43"]
[White "Martinez de La Trinidad, Alexandra"]
[Black "Ruiz Perez, Juan Octavio"]
[Result "0-1"]
[ECO "D78"]
[WhiteElo "1843"]
[BlackElo "2074"]
[Annotator "NA"]
[PlyCount "34"]
[EventDate "2022.02.12"]
[EventType "swiss"]
[EventCountry "MEX"]
[SourceTitle "playchess.com"]
[Source "ChessBase"]
[SourceQuality "1"]
[TimeControl "5400+30"]

1. d4 {[%emt 0:00:09]} Nf6 {[%emt 0:00:08]} 2. c4 {[%emt 0:00:04]} g6 {[%emt 0:00:59]} 3. g3 {[%emt 0:00:00]} c6 {[%emt 0:00:30]} 4. Bg2 {[%emt 0:00:13]} d5 {[%emt 0:00:31]} 5. b3 {[%emt 0:00:00]} Bg7 {[%emt 1:30:52]} 6. Nf3 {[%emt 1:33:04]} O-O {[%emt 0:00:00]} 7. O-O {[%emt 0:00:00]} Ne4 {[%emt 0:01:00]} 8. Bb2 {[%emt 0:01:00]} a5 {[%emt 0:00:00]} 9. Nbd2 a4 10. Nxe4 {[%emt 0:00:00]} dxe4 {[%emt 0:00:00]} 11. Nd2 {[%emt 0:00:00]} f5 {[%emt 0:00:00]} 12. e3 {[%emt 0:00:00]} c5 {[%emt 0:00:00]} 13. f3 {[%emt 0:00:00]} a3 {[%emt 0:00:00]} 14. Bc3 {[%emt 0:00:00]} cxd4 {[%emt 0:00:00]} 15. exd4 {[%emt 0:00:00]} Bxd4+ {[%emt 0:00:00]} 16. Bxd4 {[%emt 0:00:00]} Qxd4+ {[%emt 0:00:00]} 17. Kh1 {[%emt 0:00:00]} e3 {[%emt 0:00:00]} 0-1

[Event "VIII Iberoamericano Mexico 2022"]
[Site "Mexico City"]
[Date "2022.02.18"]
[Round "7.44"]
[White "Mares Arellano, Juan Antoni"]
[Black "Zarate Manjarrez, Alfredo"]
[Result "0-1"]
[ECO "B42"]
[WhiteElo "1812"]
[BlackElo "2026"]
[Annotator "NA"]
[PlyCount "88"]
[EventDate "2022.02.12"]
[EventType "swiss"]
[EventCountry "MEX"]
[SourceTitle "playchess.com"]
[Source "ChessBase"]
[SourceQuality "1"]
[TimeControl "5400+30"]

1. e4 {[%emt 0:00:10]} c5 {[%emt 0:00:05]} 2. Nf3 {[%emt 0:00:04]} e6 {[%emt 0:00:16]} 3. d4 {[%emt 0:00:10]} cxd4 {[%emt 0:00:05]} 4. Nxd4 {[%emt 0:00:06]} Nf6 {[%emt 0:00:47]} 5. Bd3 {[%emt 0:03:43]} d6 {[%emt 0:02:29]} 6. O-O {[%emt 0:00:19]} Be7 {[%emt 0:02:55]} 7. b3 {[%emt 0:02:46]} O-O {[%emt 0:08:39]} 8. Bb2 {[%emt 0:00:58]} b6 {[%emt 0:01:59]} 9. c4 {[%emt 0:01:29]} Bb7 {[%emt 0:00:10]} 10. Qe2 {[%emt 0:00:04]} Nbd7 {[%emt 0:03:35]} 11. Nc3 {[%emt 0:04:36]} a6 {[%emt 0:02:00]} 12. Rad1 {[%emt 0:00:21]} Qc7 {[%emt 0:00:09]} 13. Bb1 {[%emt 0:04:00]} Rfe8 {[%emt 0:01:31]} 14. f4 {[%emt 0:02:39]} Bf8 {[%emt 0:01:39]} 15. Rf3 {[%emt 0:04:49]} g6 {[%emt 0:25:04]} 16. Nc2 {[%emt 0:07:37]} Bg7 {[%emt 0:06:28]} 17. Ne1 {[%emt 0:03:06]} Rad8 {[%emt 0:04:24]} 18. Rc1 {[%emt 0:13:28]} Qb8 {[%emt 0:03:06]} 19. b4 {[%emt 0:07:25]} Rc8 {[%emt 0:02:06]} 20. g3 {[%emt 0:05:10]} h5 {[%emt 0:02:11]} 21. Rf1 {[%emt 0:01:59]} Qa7 {[%emt 0:04:34]} 22. Bd3 {[%emt 0:07:31]} b5+ {[%emt 0:03:07]} 23. Kg2 {[%emt 0:01:33]} bxc4 {[%emt 0:07:47]} 24. Bxc4 {[%emt 0:03:52]} Nxe4 {[%emt 0:01:04]} 25. Nxe4 {[%emt 0:03:48]} Bxe4+ {[%emt 0:02:53]} 26. Qxe4 {[%emt 0:00:18]} Bxb2 {[%emt 0:00:02]} 27. Rd1 {[%emt 0:02:45]} d5 {[%emt 0:00:23]} 28. Qe2 {[%emt 0:00:12]} Rxc4 {[%emt 0:01:46]} 29. Qxb2 {[%emt 0:00:13]} Rec8 {[%emt 0:00:14]} 30. Rf2 {[%emt 0:02:04]} Qb7 {[%emt 0:00:07]} 31. Nd3 {[%emt 0:01:52]} d4+ {[%emt 0:00:53]} 32. Kg1 {[%emt 0:00:23]} Qb6 {[%emt 0:00:47]} 33. Rb1 {[%emt 0:04:05]} Nf6 {[%emt 0:00:33]} 34. Nc5 {[%emt 0:00:10]} Ng4 {[%emt 0:00:49]} 35. Rd2 {[%emt 0:00:28]} a5 {[%emt 0:02:35]} 36. a3 {[%emt 0:00:50]} axb4 {[%emt 0:00:25]} 37. axb4 {[%emt 0:00:22]} Ne3 {[%emt 0:02:47]} 38. Qb3 {[%emt 0:04:47]} R8xc5 {[%emt 0:04:07]} 39. bxc5 {[%emt 0:01:22]} Rc1+ {[%emt 0:00:01]} 40. Kf2 {[%emt 0:04:35]} Qc6 {[%emt 0:03:27]} 41. Qb8+ {[%emt 0:00:53]} Kh7 {[%emt 0:00:01]} 42. Rxd4 {[%emt 0:01:12]} Ng4+ {[%emt 0:00:36]} 43. Ke2 {[%emt 0:00:32]} Qg2+ {[%emt 0:00:02]} 44. Kd3 {[%emt 0:00:01]} Qc2# {[%emt 0:02:24]} 0-1

[Event "VIII Iberoamericano Mexico 2022"]
[Site "Mexico City"]
[Date "2022.02.18"]
[Round "7.45"]
[White "Diaz Gonzalez Jardon, Emmanuel"]
[Black "Ocampo, Cristina"]
[Result "0-1"]
[ECO "D05"]
[WhiteElo "1807"]
[BlackElo "2024"]
[Annotator "NA"]
[PlyCount "104"]
[EventDate "2022.02.12"]
[EventType "swiss"]
[EventCountry "MEX"]
[SourceTitle "playchess.com"]
[Source "ChessBase"]
[SourceQuality "1"]
[TimeControl "5400+30"]

1. d4 {[%emt 0:03:46]} d5 {[%emt 0:00:11]} 2. Nf3 {[%emt 0:00:34]} Nf6 {[%emt 0:00:07]} 3. e3 {[%emt 0:01:53]} e6 {[%emt 0:00:31]} 4. Bd3 {[%emt 0:00:24]} c5 {[%emt 0:01:29]} 5. c3 {[%emt 0:00:10]} Nc6 {[%emt 0:01:02]} 6. O-O {[%emt 0:00:25]} Bd6 {[%emt 0:01:00]} 7. Nbd2 {[%emt 0:01:58]} O-O {[%emt 0:00:27]} 8. Re1 {[%emt 0:02:25]} e5 {[%emt 0:06:49]} 9. dxe5 {[%emt 0:04:08]} Nxe5 {[%emt 0:00:15]} 10. Nxe5 {[%emt 0:00:11]} Bxe5 {[%emt 0:00:38]} 11. Nf3 {[%emt 0:00:17]} Bd6 {[%emt 0:01:14]} 12. b3 {[%emt 0:04:40]} Bg4 {[%emt 0:11:03]} 13. h3 {[%emt 0:01:14]} Bh5 {[%emt 0:01:24]} 14. Bb2 {[%emt 0:01:24]} Re8 {[%emt 0:00:28]} 15. Qe2 {[%emt 0:09:22]} Qc7 {[%emt 0:05:31]} 16. Bf5 {[%emt 0:05:16]} Rad8 {[%emt 0:05:22]} 17. Qc2 {[%emt 0:11:22]} Bxf3 {[%emt 0:14:01]} 18. gxf3 {[%emt 0:00:07]} g6 {[%emt 0:00:06]} 19. Bd3 {[%emt 0:00:19]} Nd7 {[%emt 0:00:07]} 20. c4 {[%emt 0:07:03]} Be5 {[%emt 0:00:40]} 21. f4 {[%emt 0:11:25]} Bxb2 {[%emt 0:00:29]} 22. Qxb2 {[%emt 0:00:08]} d4 {[%emt 0:06:28]} 23. exd4 {[%emt 0:00:20]} Rxe1+ {[%emt 0:01:50]} 24. Rxe1 {[%emt 0:00:08]} cxd4 {[%emt 0:00:01]} 25. b4 {[%emt 0:09:52]} Nf6 {[%emt 0:04:09]} 26. f5 {[%emt 0:03:00]} Qf4 {[%emt 0:01:12]} 27. fxg6 {[%emt 0:00:51]} hxg6 {[%emt 0:00:07]} 28. Qc1 {[%emt 0:03:47]} Qh4 {[%emt 0:04:03]} 29. Kg2 {[%emt 0:00:15]} Kg7 {[%emt 0:00:52]} 30. Qa3 {[%emt 0:12:53]} Nh5 {[%emt 0:09:02]} 31. Bf1 {[%emt 0:01:53]} d3 {[%emt 0:04:11]} 32. Qb2+ {[%emt 0:00:03]} Kg8 {[%emt 0:00:40]} 33. Rd1 {[%emt 0:00:37]} Qxc4 {[%emt 0:01:39]} 34. Qe5 {[%emt 0:00:25]} Qc6+ {[%emt 0:01:41]} 35. Kg1 {[%emt 0:00:59]} Qf3 {[%emt 0:01:13]} 36. Qg5 {[%emt 0:00:01]} Rd5 {[%emt 0:00:36]} 37. Qg4 {[%emt 0:00:55]} Qf6 {[%emt 0:06:31]} 38. Bg2 {[%emt 0:00:01]} Rd4 {[%emt 0:06:57]} 39. Qc8+ {[%emt 0:00:06]} Kg7 {[%emt 0:00:02]} 40. Qxb7 {[%emt 0:00:08]} Nf4 {[%emt 0:00:21]} 41. a3 {[%emt 0:00:30]} Qg5 {[%emt 0:01:18]} 42. Qf3 {[%emt 0:01:10]} d2 {[%emt 0:00:17]} 43. Kh2 {[%emt 0:00:36]} Rd3 {[%emt 0:02:31]} 44. Qe4 {[%emt 0:01:09]} f5 {[%emt 0:01:58]} 45. Qb7+ {[%emt 0:00:09]} Kh6 {[%emt 0:00:07]} 46. Qa8 {[%emt 0:00:08]} Rd8 {[%emt 0:00:11]} 47. Qf3 {[%emt 0:00:19]} Rd3 {[%emt 0:01:19]} 48. Qa8 {[%emt 0:00:14]} Rd8 {[%emt 0:00:10]} 49. Qc6 {[%emt 0:06:00]} Nd3 {[%emt 0:02:40]} 50. Bf3 {[%emt 0:00:30]} Qf4+ {[%emt 0:00:30]} 51. Kg2 {[%emt 0:00:30]} Ne1+ {[%emt 0:00:30]} 52. Kg1 {[%emt 0:00:30]} Nd3 0-1